fUST/lending_fUST_20260602
["ID","MTS","AMOUNT","RATE_DAILY","PERIOD"]
[423751152,1780383057000,-191.84382795,0.000163,2]
[423751151,1780383057000,-10007.15067404,0.000163,2]
[423751141,1780383057000,-732.79,0.00016164,2]
[423751142,1780383057000,-500.0,0.00016164,2]
[423751144,1780383057000,-10007.15067404,0.000162,2]
[423751145,1780383057000,-191.84382795,0.000162,2]
[423751147,1780383057000,-535.049,0.00016203,2]
[423751146,1780383057000,-1415.0,0.00016203,2]
[423751148,1780383057000,-3356.0,0.00016203,2]
[423751149,1780383057000,-1690.0,0.00016203,2]
[423751171,1780383057000,-500.0,0.00016438,2]
[423751154,1780383057000,-245.46,0.00016389,2]
[423751153,1780383057000,-973.46085934,0.00016366,2]
[423751165,1780383057000,-562.26240094,0.00016438,2]
[423751166,1780383057000,-998.57802407,0.00016438,2]
[423751156,1780383057000,-500.0,0.00016438,2]
[423751158,1780383057000,-500.0,0.00016438,2]
[423751155,1780383057000,-151.0,0.000164,2]
[423751157,1780383057000,-500.0,0.00016438,2]
[423751160,1780383057000,-1216.10786324,0.00016438,2]
[423751159,1780383057000,-675.61547958,0.00016438,2]
[423751161,1780383057000,-2161.96953465,0.00016438,2]
[423751163,1780383057000,-3374.69932049,0.00016438,2]
[423751162,1780383057000,-500.0,0.00016438,2]
[423751167,1780383057000,-500.0,0.00016438,2]
[423751164,1780383057000,-312.36800052,0.00016438,2]
[423751199,1780383057000,-268.266893,0.00016438,2]
[423751208,1780383057000,-10007.15067404,0.000165,2]
[423751200,1780383057000,-268.266893,0.00016438,2]
[423751235,1780383057000,-500.0,0.00016712,2]
[423751240,1780383057000,-260.02787967,0.00016712,2]
[423751234,1780383057000,-500.0,0.00016712,2]
[423751238,1780383057000,-1773.0,0.00016712,2]
[423751237,1780383057000,-500.0,0.00016712,2]
[423751242,1780383057000,-1521.94,0.00016712,2]
[423751241,1780383057000,-500.0,0.00016712,2]
[423751244,1780383057000,-846.58,0.00016712,2]
[423751246,1780383057000,-500.0,0.00016712,2]
[423751247,1780383057000,-524.15,0.00016712,2]
[423751248,1780383057000,-3240.72,0.00016712,2]
[423751245,1780383057000,-500.0,0.00016712,2]
[423751256,1780383057000,-268.266893,0.000168,2]
[423751239,1780383057000,-500.0,0.00016712,2]
[423751251,1780383057000,-732.79,0.00016712,2]
[423751250,1780383057000,-695.58,0.00016712,2]
[423751255,1780383057000,-268.266893,0.000168,2]
[423751252,1780383057000,-500.0,0.00016712,2]
[423751253,1780383057000,-9004.16580376,0.000168,30]
[423751254,1780383057000,-10007.15067404,0.000168,2]
[423751259,1780383057000,-151.0,0.000169,2]
[423751263,1780383057000,-166.16464406,0.00016986,2]
[423751260,1780383057000,-151.0,0.000169,2]
[423751262,1780383057000,-500.0,0.00016986,2]
[423751258,1780383057000,-268.266892,0.000168,2]
[423751261,1780383057000,-500.0,0.00016986,2]
[423751264,1780383057000,-500.0,0.00016986,2]
[423751204,1780383057000,-268.266893,0.00016438,2]
[423751257,1780383057000,-268.266893,0.000168,2]
[423751236,1780383057000,-760.44,0.00016712,2]
[423751249,1780383057000,-514.94,0.00016712,2]
[423751243,1780383057000,-503.24,0.00016712,2]
[423751232,1780383057000,-500.0,0.00016712,2]
[423751202,1780383057000,-268.266893,0.00016438,2]
[423751206,1780383057000,-268.266893,0.00016438,2]
[423751217,1780383057000,-311.20222593,0.00016522,2]
[423751216,1780383057000,-306.21464273,0.00016522,2]
[423751205,1780383057000,-268.266893,0.00016438,2]
[423751207,1780383057000,-268.266893,0.00016438,2]
[423751215,1780383057000,-388.53498274,0.00016522,2]
[423751214,1780383057000,-316.2412942,0.00016522,2]
[423751212,1780383057000,-312.75534801,0.00016522,2]
[423751211,1780383057000,-198.48267355,0.00016522,2]
[423751213,1780383057000,-213.83729046,0.00016522,2]
[423751209,1780383057000,-191.84382795,0.000165,2]
[423751210,1780383057000,-151.93154235,0.00016504,2]
[423751201,1780383057000,-268.266893,0.00016438,2]
[423751221,1780383057000,-215.66728094,0.00016522,2]
[423751233,1780383057000,-500.0,0.00016712,2]
[423751229,1780383057000,-500.0,0.00016712,2]
[423751230,1780383057000,-500.0,0.00016712,2]
[423751231,1780383057000,-500.0,0.00016712,2]
[423751227,1780383057000,-10007.15067404,0.000167,2]
[423751222,1780383057000,-500.0,0.00016523,2]
[423751218,1780383057000,-202.94997748,0.00016522,2]
[423751219,1780383057000,-217.39918721,0.00016522,2]
[423751224,1780383057000,-633.90867158,0.000166,2]
[423751228,1780383057000,-500.0,0.00016712,2]
[423751223,1780383057000,-268.8,0.00016557,2]
[423751226,1780383057000,-276.69,0.00016689,2]
[423751220,1780383057000,-429.15008821,0.00016522,2]
[423751225,1780383057000,-283.82,0.00016689,2]
[423751278,1780383058000,-500.0,0.00016986,2]
[423751284,1780383058000,-500.0,0.00016986,2]
[423751285,1780383058000,-1000.0,0.00017,2]
[423751286,1780383058000,-10007.15067404,0.00017,2]
[423751287,1780383058000,-199.13363081,0.00017008,2]
[423751288,1780383058000,-173.24209485,0.00017015,2]
[423751291,1780383058000,-287.42837429,0.00017036,2]
[423751290,1780383058000,-258.07079636,0.00017018,2]
[423751292,1780383058000,-297.48529382,0.00017036,2]
[423751293,1780383058000,-167.51631072,0.00017036,2]
[423751298,1780383058000,-474.3619413,0.00017036,2]
[423751304,1780383058000,-643.72513232,0.00017036,2]
[423751275,1780383058000,-503.24,0.00016986,2]
[423751289,1780383058000,-303.86308469,0.00017018,2]
[423751281,1780383058000,-514.94,0.00016986,2]
[423751280,1780383058000,-3240.72,0.00016986,2]
[423751274,1780383058000,-1521.94,0.00016986,2]
[423751272,1780383058000,-500.0,0.00016986,2]
[423751279,1780383058000,-524.15,0.00016986,2]
[423751277,1780383058000,-500.0,0.00016986,2]
[423751282,1780383058000,-695.58,0.00016986,2]
[423751295,1780383058000,-396.96534711,0.00017036,2]
[423751283,1780383058000,-732.79,0.00016986,2]
[423751273,1780383058000,-500.0,0.00016986,2]
[423751268,1780383058000,-500.0,0.00016986,2]
[423751267,1780383058000,-500.0,0.00016986,2]
[423751265,1780383058000,-500.0,0.00016986,2]
[423751269,1780383058000,-760.44,0.00016986,2]
[423751266,1780383058000,-500.0,0.00016986,2]
[423751271,1780383058000,-1773.0,0.00016986,2]
[423751276,1780383058000,-846.58,0.00016986,2]
[423751301,1780383058000,-466.8033389,0.00017036,2]
[423751270,1780383058000,-500.0,0.00016986,2]
[423751300,1780383058000,-459.32196409,0.00017036,2]
[423751318,1780383058000,-760.44,0.0001726,2]
[423751320,1780383058000,-1773.0,0.0001726,2]
[423751319,1780383058000,-500.0,0.0001726,2]
[423751322,1780383058000,-500.0,0.0001726,2]
[423751323,1780383058000,-548.4576299,0.0001726,2]
[423751321,1780383058000,-500.0,0.0001726,2]
[423751310,1780383058000,-10007.15067404,0.000172,2]
[423751326,1780383058000,-503.24,0.0001726,2]
[423751296,1780383058000,-469.13302202,0.00017036,2]
[423751327,1780383058000,-846.58,0.0001726,2]
[423751331,1780383058000,-2678.83982479,0.0001726,2]
[423751329,1780383058000,-500.0,0.0001726,2]
[423751328,1780383058000,-500.0,0.0001726,2]
[423751330,1780383058000,-524.15,0.0001726,2]
[423751324,1780383058000,-500.0,0.00013698,2]
[423751309,1780383058000,-824.0,0.00017107,2]
[423751325,1780383058000,-973.4823701,0.0001726,2]
[423751317,1780383058000,-500.0,0.0001726,2]
[423751294,1780383058000,-202.01624221,0.00017036,2]
[423751302,1780383058000,-405.89995497,0.00017036,2]
[423751299,1780383058000,-582.8024741,0.00017036,2]
[423751303,1780383058000,-434.79837443,0.00017036,2]
[423751297,1780383058000,-427.67458091,0.00017036,2]
[423751313,1780383058000,-500.0,0.0001726,2]
[423751312,1780383058000,-500.0,0.0001726,2]
[423751314,1780383058000,-500.0,0.0001726,2]
[423751307,1780383058000,-600.0,0.00017045,2]
[423751305,1780383058000,-431.33456189,0.00017036,2]
[423751315,1780383058000,-500.0,0.0001726,2]
[423751306,1780383058000,-287.07516078,0.00017042,2]
[423751316,1780383058000,-500.0,0.0001726,2]
[423751311,1780383058000,-500.0,0.0001726,2]
[423751308,1780383058000,-824.0,0.00017047,2]
[423751353,1780383691000,-5000.0,0.00012171,2]
[423751354,1780383708000,-300.0,0.00012293,2]
[423751355,1780383714000,-287.27831301,0.00013365,14]
[423751356,1780383725000,-5000.0,0.00012171,2]
[423751357,1780383742000,-500.0,0.00012294,2]
[423751358,1780383758000,-500.0,0.00012294,2]
[423751359,1780383775000,-500.0,0.00012294,2]
[423751413,1780384232000,-300.0,0.00012543,2]
[423751420,1780384232000,-300.0,0.00012543,2]
[423751410,1780384232000,-300.0,0.00012543,2]
[423751412,1780384232000,-300.0,0.00012543,2]
[423751406,1780384232000,-300.0,0.00012543,2]
[423751418,1780384232000,-300.0,0.00012543,2]
[423751403,1780384232000,-300.0,0.00012543,2]
[423751404,1780384232000,-300.0,0.00012543,2]
[423751395,1780384232000,-5000.0,0.00012171,2]
[423751401,1780384232000,-300.0,0.00012543,2]
[423751397,1780384232000,-486.0637145,0.00012294,2]
[423751399,1780384232000,-300.0,0.00012542,2]
[423751415,1780384232000,-300.0,0.00012543,2]
[423751422,1780384232000,-300.0,0.00012543,2]
[423751424,1780384232000,-300.0,0.00012543,2]
[423751409,1780384232000,-300.0,0.00012543,2]
[423751425,1780384232000,-300.0,0.00012543,2]
[423751427,1780384232000,-199.544,0.00012644,2]
[423751429,1780384232000,-600.0,0.00012793,2]
[423751433,1780384232000,-256.86190267,0.00012802,2]
[423751431,1780384232000,-362.35748082,0.000128,2]
[423751441,1780384232000,-500.0,0.00012901,2]
[423751439,1780384232000,-500.0,0.00012901,2]
[423751437,1780384232000,-500.0,0.00012901,2]
[423751435,1780384232000,-267.1812174,0.00012802,2]
[423751445,1780384232000,-164.77768127,0.00012901,2]
[423751443,1780384232000,-500.0,0.00012901,2]
[423751446,1780384232000,-335.22231873,0.00012901,2]
[423751448,1780384232000,-84.24101777,0.00012901,2]
[423751408,1780384232000,-300.0,0.00012543,2]
[423751504,1780384241000,-500.0,0.00012901,2]
[423751505,1780384241000,-245.5231763,0.00012901,2]
[423751506,1780384241000,-2575.11103409,0.00012902,2]
[423751551,1780384248000,-500.0,0.00013698,2]
[423751556,1780384248000,-152.27590531,0.00013698,2]
[423751549,1780384248000,-634.14,0.00013698,2]
[423751560,1780384248000,-500.0,0.00013698,2]
[423751552,1780384248000,-500.0,0.00013698,2]
[423751557,1780384248000,-500.0,0.00013698,2]
[423751558,1780384248000,-500.0,0.00013698,2]
[423751553,1780384248000,-500.0,0.00013698,2]
[423751555,1780384248000,-210.39222123,0.00013698,2]
[423751559,1780384248000,-500.0,0.00013698,2]
[423751550,1780384248000,-500.0,0.00013698,2]
[423751554,1780384248000,-500.0,0.00013698,2]
[423751563,1780384248000,-500.0,0.00013698,2]
[423751548,1780384248000,-738.75,0.00013698,2]
[423751543,1780384248000,-500.0,0.00013698,2]
[423751537,1780384248000,-150.293,0.00013531,2]
[423751541,1780384248000,-500.0,0.00013698,2]
[423751561,1780384248000,-500.0,0.00013698,2]
[423751532,1780384248000,-39077.53030346,0.00012902,2]
[423751533,1780384248000,-152.0,0.00013207,7]
[423751531,1780384248000,-6975.0,0.00012902,2]
[423751535,1780384248000,-185.0,0.00013521,2]
[423751545,1780384248000,-500.0,0.00013698,2]
[423751542,1780384248000,-500.0,0.00013698,2]
[423751546,1780384248000,-500.0,0.00013698,2]
[423751536,1780384248000,-444.0,0.00013521,2]
[423751534,1780384248000,-152.0,0.00013207,7]
[423751544,1780384248000,-500.0,0.00013698,2]
[423751538,1780384248000,-150.2,0.00013531,2]
[423751539,1780384248000,-1415.0,0.00013531,2]
[423751547,1780384248000,-500.0,0.00013698,2]
[423751540,1780384248000,-369.73580457,0.00013697,2]
[423751574,1780384248000,-500.0,0.00013698,2]
[423751596,1780384248000,-324.84355143,0.00013972,2]
[423751573,1780384248000,-500.0,0.00013698,2]
[423751583,1780384248000,-500.0,0.00013698,2]
[423751584,1780384248000,-1373.71,0.00013698,2]
[423751585,1780384248000,-500.0,0.00013698,2]
[423751581,1780384248000,-500.0,0.00013698,2]
[423751588,1780384248000,-500.0,0.00013698,2]
[423751590,1780384248000,-500.0,0.00013698,2]
[423751582,1780384248000,-500.0,0.00013698,2]
[423751589,1780384248000,-500.0,0.00013698,2]
[423751594,1780384248000,-738.75,0.00013972,2]
[423751593,1780384248000,-500.0,0.00013972,2]
[423751597,1780384248000,-500.0,0.00013972,2]
[423751595,1780384248000,-634.14,0.00013972,2]
[423751598,1780384248000,-500.0,0.00013972,2]
[423751562,1780384248000,-500.0,0.00013698,2]
[423751591,1780384248000,-500.0,0.00013698,2]
[423751578,1780384248000,-449.45519867,0.00013698,2]
[423751592,1780384248000,-500.0,0.00013698,2]
[423751575,1780384248000,-500.0,0.00013698,2]
[423751565,1780384248000,-500.0,0.00013698,2]
[423751579,1780384248000,-217.26485807,0.00013698,2]
[423751567,1780384248000,-500.0,0.00013698,2]
[423751564,1780384248000,-500.0,0.00013698,2]
[423751568,1780384248000,-500.0,0.00013698,2]
[423751570,1780384248000,-500.0,0.00013698,2]
[423751566,1780384248000,-500.0,0.00013698,2]
[423751569,1780384248000,-500.0,0.00013698,2]
[423751577,1780384248000,-500.0,0.00013698,2]
[423751586,1780384248000,-500.0,0.00013698,2]
[423751571,1780384248000,-531.94,0.00013698,2]
[423751572,1780384248000,-500.0,0.00013698,2]
[423751587,1780384248000,-500.0,0.00013698,2]
[423751576,1780384248000,-500.0,0.00013698,2]
[423751580,1780384248000,-500.0,0.00013698,2]
[423751631,1780384249000,-634.14,0.0001452,2]
[423751641,1780384249000,-190.50833418,0.000146,2]
[423751634,1780384249000,-500.0,0.0001452,2]
[423751632,1780384249000,-500.0,0.0001452,2]
[423751636,1780384249000,-500.0,0.0001452,2]
[423751639,1780384249000,-500.0,0.0001452,2]
[423751651,1780384249000,-500.0,0.00014794,2]
[423751643,1780384249000,-190.50833418,0.000147,2]
[423751633,1780384249000,-500.0,0.0001452,2]
[423751642,1780384249000,-10007.15067404,0.000146,2]
[423751650,1780384249000,-500.0,0.00014794,2]
[423751652,1780384249000,-1373.71,0.00014794,2]
[423751640,1780384249000,-500.0,0.0001452,2]
[423751654,1780384249000,-500.0,0.00014794,2]
[423751648,1780384249000,-500.0,0.00014794,2]
[423751647,1780384249000,-500.0,0.00014794,2]
[423751645,1780384249000,-738.75,0.00014794,2]
[423751644,1780384249000,-10007.15067404,0.000147,2]
[423751649,1780384249000,-500.0,0.00014794,2]
[423751664,1780384249000,-500.0,0.00015068,2]
[423751653,1780384249000,-500.0,0.00014794,2]
[423751666,1780384249000,-1373.71,0.00015068,2]
[423751665,1780384249000,-500.0,0.00015068,2]
[423751660,1780384249000,-634.14,0.00015068,2]
[423751656,1780384249000,-190.50833418,0.000149,2]
[423751663,1780384249000,-500.0,0.00015068,2]
[423751635,1780384249000,-500.0,0.0001452,2]
[423751662,1780384249000,-500.0,0.00015068,2]
[423751646,1780384249000,-634.14,0.00014794,2]
[423751628,1780384249000,-190.50833418,0.000144,2]
[423751615,1780384249000,-500.0,0.00014246,2]
[423751630,1780384249000,-738.75,0.0001452,2]
[423751655,1780384249000,-500.0,0.00014794,2]
[423751600,1780384249000,-500.0,0.00013972,2]
[423751599,1780384249000,-404.96817712,0.00013972,2]
[423751602,1780384249000,-500.0,0.00013972,2]
[423751604,1780384249000,-500.0,0.00013972,2]
[423751603,1780384249000,-500.0,0.00013972,2]
[423751601,1780384249000,-565.98,0.00013972,2]
[423751605,1780384249000,-1373.71,0.00013972,2]
[423751606,1780384249000,-500.0,0.00013972,2]
[423751607,1780384249000,-500.0,0.00013972,2]
[423751609,1780384249000,-500.0,0.00013972,2]
[423751608,1780384249000,-500.0,0.00013972,2]
[423751611,1780384249000,-720.0,0.00014072,2]
[423751612,1780384249000,-738.75,0.00014246,2]
[423751614,1780384249000,-500.0,0.00014246,2]
[423751619,1780384249000,-1373.71,0.00014246,2]
[423751613,1780384249000,-634.14,0.00014246,2]
[423751617,1780384249000,-500.0,0.00014246,2]
[423751620,1780384249000,-500.0,0.00014246,2]
[423751624,1780384249000,-160.0,0.00014274,2]
[423751622,1780384249000,-500.0,0.00014246,2]
[423751621,1780384249000,-554.20021461,0.00014246,2]
[423751625,1780384249000,-160.0,0.00014274,2]
[423751623,1780384249000,-500.0,0.00014246,2]
[423751618,1780384249000,-500.0,0.00014246,2]
[423751627,1780384249000,-10007.15067404,0.000143,2]
[423751637,1780384249000,-1373.71,0.0001452,2]
[423751638,1780384249000,-500.0,0.0001452,2]
[423751626,1780384249000,-190.50833418,0.000143,2]
[423751629,1780384249000,-10007.15067404,0.000144,2]
[423751657,1780384249000,-10007.15067404,0.000149,2]
[423751610,1780384249000,-500.0,0.00013972,2]
[423751659,1780384249000,-738.75,0.00015068,2]
[423751702,1780384249000,-267.1812174,0.00015673,2]
[423751700,1780384249000,-500.0,0.00015616,2]
[423751703,1780384249000,-171.32042952,0.0001575,2]
[423751704,1780384249000,-173.22995338,0.0001575,2]
[423751705,1780384249000,-10007.15067404,0.000158,2]
[423751695,1780384249000,-500.0,0.00015616,2]
[423751706,1780384249000,-738.75,0.0001589,2]
[423751708,1780384249000,-500.0,0.0001589,2]
[423751710,1780384249000,-500.0,0.0001589,2]
[423751707,1780384249000,-634.14,0.0001589,2]
[423751709,1780384249000,-500.0,0.0001589,2]
[423751713,1780384249000,-500.0,0.0001589,2]
[423751714,1780384249000,-500.0,0.0001589,2]
[423751711,1780384249000,-500.0,0.0001589,2]
[423751712,1780384249000,-1373.71,0.0001589,2]
[423751715,1780384249000,-500.0,0.0001589,2]
[423751717,1780384249000,-191.87034451,0.00016,2]
[423751716,1780384249000,-10007.15067404,0.000159,2]
[423751718,1780384249000,-824.0,0.00016062,2]
[423751719,1780384249000,-10007.15067404,0.000161,2]
[423751720,1780384249000,-738.75,0.00016164,2]
[423751726,1780384249000,-1373.71,0.00016164,2]
[423751722,1780384249000,-500.0,0.00016164,2]
[423751723,1780384249000,-266.86013755,0.00016164,2]
[423751724,1780384249000,-500.0,0.00016164,2]
[423751721,1780384249000,-634.14,0.00016164,2]
[423751725,1780384249000,-500.0,0.00016164,2]
[423751727,1780384249000,-500.0,0.00016164,2]
[423751658,1780384249000,-10007.15067404,0.00015,2]
[423751701,1780384249000,-500.0,0.00015616,2]
[423751698,1780384249000,-1373.71,0.00015616,2]
[423751616,1780384249000,-500.0,0.00014246,2]
[423751697,1780384249000,-500.0,0.00015616,2]
[423751661,1780384249000,-500.0,0.00015068,2]
[423751668,1780384249000,-500.0,0.00015068,2]
[423751674,1780384249000,-634.14,0.00015342,2]
[423751672,1780384249000,-10007.15067404,0.000153,2]
[423751678,1780384249000,-500.0,0.00015342,2]
[423751679,1780384249000,-500.0,0.00015342,2]
[423751671,1780384249000,-824.0,0.00015278,2]
[423751675,1780384249000,-500.0,0.00015342,2]
[423751669,1780384249000,-500.0,0.00015068,2]
[423751676,1780384249000,-500.0,0.00015342,2]
[423751670,1780384249000,-10007.15067404,0.000152,2]
[423751673,1780384249000,-738.75,0.00015342,2]
[423751677,1780384249000,-500.0,0.00015342,2]
[423751681,1780384249000,-500.0,0.00015342,2]
[423751691,1780384249000,-738.75,0.00015616,2]
[423751667,1780384249000,-500.0,0.00015068,2]
[423751699,1780384249000,-500.0,0.00015616,2]
[423751692,1780384249000,-634.14,0.00015616,2]
[423751696,1780384249000,-500.0,0.00015616,2]
[423751684,1780384249000,-864.0,0.00015479,2]
[423751688,1780384249000,-824.0,0.00015598,2]
[423751689,1780384249000,-10007.15067404,0.000156,2]
[423751690,1780384249000,-251.59104314,0.000156,2]
[423751694,1780384249000,-500.0,0.00015616,2]
[423751687,1780384249000,-152.0,0.00015588,2]
[423751685,1780384249000,-824.0,0.0001549,2]
[423751683,1780384249000,-500.0,0.00015342,2]
[423751682,1780384249000,-500.0,0.00015342,2]
[423751680,1780384249000,-1373.71,0.00015342,2]
[423751686,1780384249000,-10007.15067404,0.000155,2]
[423751693,1780384249000,-273.62007225,0.00015616,2]
[423751768,1780384250000,-500.0,0.00016986,2]
[423751763,1780384250000,-500.0,0.00016712,2]
[423751762,1780384250000,-500.0,0.00016712,2]
[423751760,1780384250000,-164.36603378,0.00016712,2]
[423751764,1780384250000,-500.0,0.00016712,2]
[423751758,1780384250000,-634.14,0.00016712,2]
[423751759,1780384250000,-500.0,0.00016712,2]
[423751757,1780384250000,-738.75,0.00016712,2]
[423751766,1780384250000,-738.75,0.00016986,2]
[423751771,1780384250000,-500.0,0.00016986,2]
[423751767,1780384250000,-634.14,0.00016986,2]
[423751761,1780384250000,-1373.71,0.00016712,2]
[423751770,1780384250000,-500.0,0.00016986,2]
[423751777,1780384250000,-259.02332182,0.00017034,2]
[423751774,1780384250000,-1000.0,0.00017027,2]
[423751775,1780384250000,-466.8033389,0.00017034,2]
[423751772,1780384250000,-500.0,0.00016986,2]
[423751776,1780384250000,-204.14309515,0.00017034,2]
[423751779,1780384250000,-202.94997748,0.00017034,2]
[423751778,1780384250000,-217.39918721,0.00017034,2]
[423751781,1780384250000,-286.10005881,0.00017034,2]
[423751782,1780384250000,-151.93154235,0.00017034,2]
[423751780,1780384250000,-191.38344052,0.00017034,2]
[423751785,1780384250000,-213.83729046,0.00017035,2]
[423751787,1780384250000,-172.04719757,0.00017035,2]
[423751765,1780384250000,-10007.15067404,0.000169,2]
[423751769,1780384250000,-1373.71,0.00016986,2]
[423751756,1780384250000,-10007.15067404,0.000167,2]
[423751739,1780384250000,-500.0,0.00016438,2]
[423751749,1780384250000,-185.0,0.00016521,2]
[423751730,1780384250000,-191.87034451,0.000162,2]
[423751729,1780384250000,-500.0,0.00016164,2]
[423751728,1780384250000,-500.0,0.00016164,2]
[423751732,1780384250000,-191.87034451,0.000163,2]
[423751734,1780384250000,-847.0,0.00016333,2]
[423751736,1780384250000,-824.0,0.000164,2]
[423751731,1780384250000,-10007.15067404,0.000162,2]
[423751742,1780384250000,-1373.71,0.00016438,2]
[423751737,1780384250000,-738.75,0.00016438,2]
[423751733,1780384250000,-167.8898845,0.00016325,2]
[423751735,1780384250000,-10007.15067404,0.000164,2]
[423751740,1780384250000,-241.58033358,0.00016438,2]
[423751751,1780384250000,-342.64085904,0.00016521,2]
[423751784,1780384250000,-198.32352922,0.00017035,2]
[423751741,1780384250000,-500.0,0.00016438,2]
[423751753,1780384250000,-1415.0,0.00016531,2]
[423751754,1780384250000,-651.0,0.0001659,2]
[423751752,1780384250000,-346.45990676,0.00016521,2]
[423751755,1780384250000,-10007.15067404,0.000166,2]
[423751743,1780384250000,-500.0,0.00016438,2]
[423751746,1780384250000,-657.9457672,0.0001647,2]
[423751744,1780384250000,-500.0,0.00016438,2]
[423751745,1780384250000,-500.0,0.00016438,2]
[423751748,1780384250000,-233.40166945,0.0001652,2]
[423751750,1780384250000,-444.0,0.00016521,2]
[423751747,1780384250000,-191.87034451,0.000165,2]
[423751738,1780384250000,-634.14,0.00016438,2]
[423751783,1780384250000,-191.61891619,0.00017035,2]
[423751773,1780384250000,-824.0,0.00017022,2]
[423751791,1780384250000,-10007.15067404,0.000171,2]
[423751816,1780384250000,-383.23783239,0.00017378,2]
[423751818,1780384250000,-427.67458091,0.00017378,2]
[423751821,1780384250000,-692.91981352,0.00017378,2]
[423751822,1780384250000,-198.66905493,0.00017379,2]
[423751819,1780384250000,-685.28171809,0.00017378,2]
[423751820,1780384250000,-344.09439514,0.00017378,2]
[423751823,1780384250000,-382.71649949,0.00017379,2]
[423751826,1780384250000,-188.50844116,0.00017379,2]
[423751827,1780384250000,-170.0775653,0.00017379,2]
[423751828,1780384250000,-373.19133245,0.00017379,2]
[423751829,1780384250000,-404.03248442,0.00017379,2]
[423751831,1780384250000,-434.11895318,0.00017379,2]
[423751834,1780384250000,-348.5894627,0.00017379,2]
[423751836,1780384250000,-326.33599182,0.00017379,2]
[423751837,1780384250000,-184.07982516,0.00017379,2]
[423751832,1780384250000,-170.17018021,0.00017379,2]
[423751830,1780384250000,-315.38681833,0.00017379,2]
[423751835,1780384250000,-368.10672183,0.00017379,2]
[423751833,1780384250000,-423.26035395,0.00017379,2]
[423751839,1780384250000,-10007.15067404,0.000174,2]
[423751838,1780384250000,-196.95545455,0.00017379,2]
[423751840,1780384250000,-824.0,0.0001748,2]
[423751841,1780384250000,-738.75,0.00017534,2]
[423751843,1780384250000,-500.0,0.00017534,2]
[423751845,1780384250000,-500.0,0.00017534,2]
[423751844,1780384250000,-1373.71,0.00017534,2]
[423751786,1780384250000,-513.96128857,0.00017035,2]
[423751817,1780384250000,-396.64705843,0.00017378,2]
[423751813,1780384250000,-572.20011761,0.00017377,2]
[423751842,1780384250000,-634.14,0.00017534,2]
[423751815,1780384250000,-303.86308469,0.00017377,2]
[423751825,1780384250000,-335.03262145,0.00017379,2]
[423751799,1780384250000,-500.0,0.0001726,2]
[423751789,1780384250000,-519.68986014,0.00017035,2]
[423751792,1780384250000,-10007.15067404,0.000172,2]
[423751797,1780384250000,-500.0,0.0001726,2]
[423751798,1780384250000,-500.0,0.0001726,2]
[423751790,1780384250000,-198.48267355,0.00017035,2]
[423751793,1780384250000,-738.75,0.0001726,2]
[423751794,1780384250000,-634.14,0.0001726,2]
[423751795,1780384250000,-500.0,0.0001726,2]
[423751796,1780384250000,-1373.71,0.0001726,2]
[423751802,1780384250000,-376.64329077,0.00017357,2]
[423751805,1780384250000,-382.76688105,0.00017376,2]
[423751788,1780384250000,-215.66728094,0.00017035,2]